Cogmind - Beta 16 @@@ ROGUE MODE // 2025.10.27 @ 12:46:07 Player: AshCrow Result: Destroyed by H-61 Shepherd with Heavy Assault Cannon Performance ------------- Evolutions (2) 1000 Regions Visited (5) 1000 Robots Destroyed (32) 160 Value Destroyed (700) 700 Prototype IDs (1) 20 Alien Tech Used (0) 0 Bonus (50) 50 TOTAL SCORE: 2930 Bonus ------- Follower Combat Kills 50 Cogmind --------- Core Integrity 0/550 Matter 187/300 Energy 99/100 System Corruption 0% Temperature Cool (0) Movement Core (50) Location -8/Materials Parts ------- > --- POWER (1) -------- (None) > --- PROPULSION (3) --- (None) > --- UTILITY (3) ------ (None) > --- WEAPON (4) ------- (None) > --- INVENTORY (5) ---- Wheel Compact Wheel Medium Storage Unit Hacking Suite Peak State ------------ > --- POWER ------------ Makeshift Power Source > --- PROPULSION ------- Light Treads Light Treads Light Treads > --- UTILITY ---------- Small Storage Unit High-capacity Storage Unit Light Armor Plating > --- WEAPON ----------- Improved Assault Rifle Improved Assault Rifle > --- INVENTORY -------- Ion Engine Ion Engine Ion Engine Ion Engine Light Ion Engine Light Ion Engine Light Treads Small Storage Unit Medium Storage Unit Hacking Suite Light Assault Rifle Grenade Launcher [Rating: 17] Favorites ----------- Power Ion Engine Engine Ion Engine Propulsion Light Treads Treads Light Treads Wheel Wheel Flight Unit Flight Unit Utility Small Storage Unit Device Seismic Detector Storage Small Storage Unit Processor Terrain Scan Processor Protection Light Armor Plating Weapon Improved Assault Rifle Energy Gun Medium Laser Ballistic Gun Improved Assault Rifle Launcher Grenade Launcher Build | -11 -10 -10 -9 -9 -8 ------- Run | Yrd Mat Min Mat Min Mat Slots Evolved 4 | . . . 2 . 2 Power . | . . . . . . Propulsion 1 | . . . 1 . . Utility 1 | . . . 1 . . Weapon 2 | . . . . . 2 Parts Attached 44 | 9 5 1 6 21 2 Power 9 | 2 3 . 1 3 . Engine 9 | 2 3 . 1 3 . Core . | . . . . . . Reactor . | . . . . . . Propulsion 16 | 2 . . 2 12 . Treads 4 | 2 . . 2 . . Leg . | . . . . . . Wheel 10 | . . . . 10 . Hover . | . . . . . . Flight 2 | . . . . 2 . Utility 10 | 2 1 . 1 6 . Device 1 | . . . . 1 . Storage 6 | 2 1 . 1 2 . Processor 1 | . . . . 1 . Hackware . | . . . . . . Protection 2 | . . . . 2 . Artifact . | . . . . . . Weapon 9 | 3 1 1 2 . 2 Energy Gun 2 | 1 1 . . . . Energy Cannon . | . . . . . . Ballistic Gun 6 | 2 . . 2 . 2 Ballistic Cannon . | . . . . . . Launcher 1 | . . 1 . . . Special Weapon . | . . . . . . Impact Weapon . | . . . . . . Slashing Weapon . | . . . . . . Piercing Weapon . | . . . . . . Special Melee Weapon . | . . . . . . Unidentified Prototypes 1 | . . . 1 . . Parts Lost 17 | . . . 2 9 6 Power 2 | . . . . 1 1 Propulsion 6 | . . . 1 3 2 Utility 3 | . . . . 3 . Weapon 6 | . . . 1 2 3 Highest Loss Streak 3 | . . . 1 3 3 To Critical Strikes . | . . . . . . Average Backups 7 | 1 4 8 8 9 4 Power 2 | . 2 4 4 3 . Propulsion 1 | . . . . 2 2 Utility 1 | . . 2 2 2 1 Weapon 1 | . 1 2 1 1 . Tool/Special . | . . . . . . Unused Backups 4 | . . . . 3 1 Power 1 | . . . . 1 . Propulsion 1 | . . . . 1 . Utility 2 | . . . . 1 1 Weapon . | . . . . . . Tool/Special . | . . . . . . Average Slot Usage (%) 74 | . 100 100 81 66 18 Engine 11 | . 14 14 11 10 3 Treads 16 | . 28 28 21 10 . Wheel 3 | . . . . 6 . Flight 5 | . . . . 9 11 Storage 18 | . 28 28 27 13 . Protection 1 | . . . . 3 . Energy Gun 5 | . 14 14 9 . . Ballistic Gun 11 | . 14 13 11 11 3 Peak Build Rating 17 | 7 8 8 14 17 4 Average Rating 8 | 5 7 7 8 9 2 On Entrance 6 | . 7 8 8 14 3 Avg Prop Armor Cover (%) 6 | . . . . 6 . Naked Turns 43 | . . . . 24 19 Heaviest Build 59 | 18 19 19 31 59 6 Greatest Support 60 | 40 40 40 60 60 8 Greatest Overweight (x) 17 | . . . . 17 . Average Overweight (x) . | . . . . . . Largest Inventory Capacity 20 | 8 20 8 10 20 5 Average Capacity 10 | 6 8 8 8 13 5 Most Carried 20 | 2 9 8 10 20 5 Average Carried 7 | 1 5 7 8 9 4 Final Capacity 10 | 8 8 8 10 5 5 Final Carried 10 | 2 8 8 10 4 4 Class Distribution -------------------- 63% | Mutant 36% | Scavenger-Mutant Dominant Class ---------------- Mutant | -10/Materials Mutant | -10/Mines Scavenger-Mutant | -9/Materials Scavenger-Mutant | -9/Mines Mutant | -8/Materials Resources | -11 -10 -10 -9 -9 -8 ----------- Run | Yrd Mat Min Mat Min Mat Matter Collected 1350 | 218 186 125 187 634 . Remotely . | . . . . . . Salvage Created 1276 | 100 332 170 264 303 107 Parts 71 | 1 24 10 14 6 16 Haulers Intercepted 4 | . 1 . 3 . . Recyclers Shooed 5 | . 3 . 2 . . Parts Field Recycled . | . . . . . . Retrieved Matter . | . . . . . . Parts Self-Destructed . | . . . . . . Prevented . | . . . . . . Parts Restored . | . . . . . . Kills | -11 -10 -10 -9 -9 -8 ------- Run | Yrd Mat Min Mat Min Mat Combat Hostiles Destroyed 38 | . 6 4 3 16 9 Guns 30 | . 6 3 1 15 5 AOE 8 | . . 1 2 1 4 Classes Destroyed 8 | 1 4 . 2 1 . Hauler 4 | . 1 . 3 . . Recycler 2 | 1 1 . . . . Operator 1 | . 1 . . . . Swarmer 12 | . 3 . . 1 8 Grunt 9 | . 3 4 1 1 . Brawler 2 | . . . 1 1 . Sentry 2 | . . . 1 . 1 Assembled 13 | . . . . 13 . Best Kill Streak 5 | 1 5 2 2 5 5 Combat Bots Only 5 | . 4 2 1 5 5 Max Kills in Single Turn 3 | 1 1 1 1 1 3 Gunslinging . | . . . . . . Exploded 3 | . . 1 1 1 3 Melee . | . . . . . . Uniques/NPCs Destroyed . | . . . . . . Combat | -11 -10 -10 -9 -9 -8 -------- Run | Yrd Mat Min Mat Min Mat Hostile Shots Fired 265 | . 35 18 13 84 115 Missed 83 | . 8 4 3 16 52 Hits 182 | . 27 14 10 68 63 Melee 14 | . . . . 14 . Projectile 168 | . 27 14 10 54 63 AOE 11 | . . . . 11 . Critical Strikes 6 | . . 2 2 . 2 Part Disruptions 1 | . . . . 1 . Damage Taken 3080 | . 373 223 147 1415 922 Core 1020 | . 25 47 . 347 601 Absorbed by Shields . | . . . . . . Core Remaining (%) 61 | 100 . 71 . 13 . Volleys Fired 137 | 3 25 17 22 52 18 Largest 2 | 2 2 2 2 2 2 Hottest 80 | 60 70 80 80 46 50 Shots Fired 252 | 6 50 34 43 93 26 Gun 235 | 6 50 33 39 86 21 Cannon . | . . . . . . Launcher 17 | . . 1 4 7 5 Special . | . . . . . . Kinetic 169 | 3 25 16 18 86 21 Thermal 66 | 3 25 17 21 . . Explosive 17 | . . 1 4 7 5 Electromagnetic . | . . . . . . Robot Hit Streak 13 | 2 7 13 8 9 11 Robot Miss Streak 5 | 1 5 2 5 3 5 Penetration Max . | . . . . . . Secondary Targets 6 | . . . 1 4 1 Max Gunslinging Chain 1 | . . . 1 1 1 Shots Hit Robots 164 | 4 29 20 26 64 21 Core Hits 84 | 2 15 11 15 28 13 Critical Kills . | . . . . . . Critical Parts Destroyed . | . . . . . . Critical Strikes 1 | . . . 1 . . Burn 1 | . . . 1 . . Melee Attacks . | . . . . . . Impact . | . . . . . . Slashing . | . . . . . . Piercing . | . . . . . . Sneak Attacks . | . . . . . . Combat Hostiles . | . . . . . . Follow-up Attacks . | . . . . . . Damage Inflicted 3249 | 63 629 353 649 943 612 Guns 2115 | 63 403 296 314 792 247 Cannons . | . . . . . . Explosions 1130 | . 226 56 335 151 362 Melee . | . . . . . . Ramming 4 | . . 1 . . 3 Kinetic 1632 | 28 244 157 164 792 247 Thermal 483 | 35 159 139 150 . . Explosive 1130 | . 226 56 335 151 362 Electromagnetic . | . . . . . . Impact . | . . . . . . Slashing . | . . . . . . Piercing . | . . . . . . Highest Corruption . | . . . . . . Average Corruption . | . . . . . . Corruption Purged . | . . . . . . Corruption Blocked . | . . . . . . Overload Shots . | . . . . . . Overflow Damage 56 | . 40 . 13 . 3 Projectiles . | . . . . . . Explosions 56 | . 40 . 13 . 3 Melee . | . . . . . . Knockbacks . | . . . . . . Impact . | . . . . . . Kinetic . | . . . . . . Secondary . | . . . . . . Self-Inflicted Damage 90 | . 78 . . 7 5 Shots 4 | . 1 . . 1 2 Rammed 4 | . . 1 . . 3 Targets Rammed 4 | . . 1 . . 3 Kicked . | . . . . . . Crushed . | . . . . . . Highest Temperature 207 | . 60 207 55 17 . Average Temperature 36 | . 28 61 17 8 . Received Heat Transfer 589 | . 102 162 99 82 144 Siege Activations . | . . . . . . Martial Activations . | . . . . . . Shielding Activations . | . . . . . . Robots Disrupted . | . . . . . . Combat Hostiles . | . . . . . . Robots Corrupted . | . . . . . . Combat Hostiles . | . . . . . . Parts Fried . | . . . . . . Impact Corruptions . | . . . . . . Robots Melted . | . . . . . . Combat Hostiles . | . . . . . . Parts Melted 1 | . . . 1 . . Heat Transferred 1398 | 75 398 407 518 . . Parts Sabotaged . | . . . . . . Parts Stolen . | . . . . . . Parts Stripped . | . . . . . . Power Chain Reactions . | . . . . . . Alert | -11 -10 -10 -9 -9 -8 ------- Run | Yrd Mat Min Mat Min Mat Maximum Alert Level 1 | . . . . . 1 Low Security (%) 98 | 100 100 100 100 100 80 Level 1 1 | . . . . . 19 Level 2 . | . . . . . . Level 3 . | . . . . . . Level 4 . | . . . . . . Level 5 . | . . . . . . High Security . | . . . . . . Max Security . | . . . . . . Peak Influence 276 | 5 181 57 95 50 276 Initial 30 | . . 24 6 30 . Average 38 | . 106 31 55 4 110 Influence Increases 1095 | 5 256 107 195 156 376 Destroy 0b10 Robot/C 540 | . 120 80 100 60 180 Destroy 0b10 Robot/NC 40 | 5 15 . 20 . . Destroy Leader 120 | . 32 20 28 10 30 Allied During Kill 7 | . . . 7 . . Disable Machine 75 | . 30 . 15 . 30 Destroy Structure 133 | . 44 7 25 26 31 Lose Combat Pursuer 180 | . 15 . . 60 105 Influence Decreases 849 | 5 194 152 134 234 130 Entered New Map 97 | . . 38 11 48 . Time Decay 654 | 5 194 114 113 158 70 Lost Part 98 | . . . 10 28 60 Squads Dispatched 7 | . 2 . 1 . 4 Investigation 2 | . . . . . 2 Extermination . | . . . . . . Reinforcement 5 | . 2 . 1 . 2 Assault . | . . . . . . Garrison . | . . . . . . Intercept . | . . . . . . Searches Triggered . | . . . . . . Construction Impeded 1 | . . . 1 . . Haulers Reinforced . | . . . . . . Active Scanning Responses . | . . . . . . Cargo Convoy Interrupts . | . . . . . . Stealth | -11 -10 -10 -9 -9 -8 --------- Run | Yrd Mat Min Mat Min Mat Distress Signals 3 | . 1 . 1 . 1 Communications Jammed . | . . . . . . Distress Signals . | . . . . . . Times Spotted 80 | . 12 4 11 27 26 Peak Tracking Total 16 | . 3 2 3 5 16 Tactical Retreats 10 | . 1 . . 6 3 Traps | -11 -10 -10 -9 -9 -8 ------- Run | Yrd Mat Min Mat Min Mat Traps Triggered 2 | . . . . . 2 Indirectly . | . . . . . . Trap Hack Attempts . | . . . . . . Triggered . | . . . . . . Disarmed . | . . . . . . Reprogrammed . | . . . . . . Reused . | . . . . . . Traps Extracted . | . . . . . . Installed . | . . . . . . Triggered . | . . . . . . Machines | -11 -10 -10 -9 -9 -8 ---------- Run | Yrd Mat Min Mat Min Mat Machines Disabled 5 | . 2 . 1 . 2 Max in Single Turn 2 | . 2 . 1 . 1 Machines Repaired . | . . . . . . Machines Dismantled . | . . . . . . Machines Sabotaged . | . . . . . . Overloaded Fab Kills . | . . . . . . Hacking | -11 -10 -10 -9 -9 -8 --------- Run | Yrd Mat Min Mat Min Mat Machines Accessed . | . . . . . . Terminals . | . . . . . . Fabricators . | . . . . . . Repair Stations . | . . . . . . Recycling Units . | . . . . . . Scanalyzers . | . . . . . . Garrison Access . | . . . . . . Total Hacks . | . . . . . . Successful . | . . . . . . Failed . | . . . . . . Catastrophic . | . . . . . . Database Lockouts . | . . . . . . Manual . | . . . . . . Terminals . | . . . . . . Fabricators . | . . . . . . Repair Stations . | . . . . . . Recycling Units . | . . . . . . Scanalyzers . | . . . . . . Garrison Access . | . . . . . . Terminal Hacks . | . . . . . . Fabricator Hacks . | . . . . . . Repair Station Hacks . | . . . . . . Recycling Unit Hacks . | . . . . . . Scanalyzer . | . . . . . . Garrison Access Hacks . | . . . . . . Unauthorized Hacks . | . . . . . . Terminals . | . . . . . . Fabricators . | . . . . . . Repair Stations . | . . . . . . Recycling Units . | . . . . . . Scanalyzers . | . . . . . . Garrison Access . | . . . . . . Data Cores Recovered . | . . . . . . Used . | . . . . . . Hacking Detections . | . . . . . . Full Trace Events . | . . . . . . Feedback Events . | . . . . . . Feedback Blocked . | . . . . . . Robot Schematics Acquired . | . . . . . . Robots Built . | . . . . . . Authchips . | . . . . . . Time . | . . . . . . Total Robot Build Rating . | . . . . . . Part Schematics Acquired . | . . . . . . Parts Built . | . . . . . . Authchips . | . . . . . . Time . | . . . . . . Total Part Build Rating . | . . . . . . Part Studies Acquired . | . . . . . . Parts Repaired . | . . . . . . Time . | . . . . . . Parts Recycled . | . . . . . . Recycled Matter . | . . . . . . Retrieved Matter . | . . . . . . Retrieved Components . | . . . . . . Parts Scanalyzed . | . . . . . . Part Schematics Acquired . | . . . . . . Parts Damaged . | . . . . . . Bothacking | -11 -10 -10 -9 -9 -8 ------------ Run | Yrd Mat Min Mat Min Mat Used RIF Installer . | . . . . . . Robots Hacked . | . . . . . . Non-combat . | . . . . . . Combat . | . . . . . . Robot Hacks Applied . | . . . . . . Relay Couplers Released . | . . . . . . Fabnet Peak Effective % . | . . . . . . Robots Rewired . | . . . . . . Allies Hacked . | . . . . . . Hacks Repelled . | . . . . . . Allies | -11 -10 -10 -9 -9 -8 -------- Run | Yrd Mat Min Mat Min Mat Total Allies 1 | . . 1 . . . Largest Group 1 | . . 1 1 . . Highest-Rated Group 31 | . . 31 31 . . Highest-Rated Ally 31 | . . 31 31 . . Total Orders . | . . . . . . Ally Attacks 19 | . . . 19 . . Total Damage 213 | . . . 213 . . Kills 3 | . . . 3 . . Allies Corrupted . | . . . . . . Allies Melted . | . . . . . . Intel | -11 -10 -10 -9 -9 -8 ------- Run | Yrd Mat Min Mat Min Mat Active Infowar (turns) 57 | . . . . 57 . Seismic 57 | . . . . 57 . Robot Analysis Total . | . . . . . . Derelict Logs Recovered 3 | . . 1 . 2 . Drone Launches . | . . . . . . Drone Recoveries . | . . . . . . Exploration | -11 -10 -10 -9 -9 -8 ------------- Run | Yrd Mat Min Mat Min Mat Turns Passed 2481 | 92 451 255 292 1231 160 Spaces Moved 1586 | 47 222 118 132 797 270 Core 88 | 4 . . . 50 34 Treads 667 | 43 222 118 132 152 . Legs . | . . . . . . Wheels 174 | . . . . 174 . Hover . | . . . . . . Flight 657 | . . . . 421 236 Fastest Speed 37 | 50 160 160 160 37 37 Average Speed 101 | 150 160 160 160 86 38 Slowest Speed 900 | 160 160 160 160 900 50 Overloaded Moves . | . . . . . . Propulsion Burnouts . | . . . . . . Robots Hopped 7 | . . . . 4 3 Potential Cave-ins 8 | . . . . 8 . Cave-ins Triggered . | . . . . . . Exploration Rate (%) 40 | 4 58 39 16 94 30 Regions Visited 5 Branch Regions 2 Pre-discovered Areas . | . . . . . . Known Exits Taken . | . . . . . . Unknown Exits Taken 5 | 1 1 1 1 1 . Scrap Searched 1 | . . . . 1 . Spaces Dug 9 | . . . . 9 . Terrain Destroyed 161 | . 43 7 26 53 32 Melee . | . . . . . . Projectile . | . . . . . . AOE 161 | . 43 7 26 53 32 Terrain Rammed . | . . . . . . Walls Destroyed . | . . . . . . Machines Disabled . | . . . . . . Actions | -11 -10 -10 -9 -9 -8 --------- Run | Yrd Mat Min Mat Min Mat Total 2175 | 58 266 149 167 1238 297 Wait 381 | . 8 10 . 360 3 Move 1567 | 46 221 117 131 788 264 Hop 7 | . . . . 4 3 Pick Up 7 | . 2 1 2 1 1 Fast Attach 22 | 7 . . 3 10 2 Attach 8 | . 2 . 1 3 2 Detach 6 | . 2 . . 3 1 Swap 31 | 2 6 2 7 14 . Drop 5 | . . 1 1 3 . Fire 137 | 3 25 17 22 52 18 Melee . | . . . . . . Ram 3 | . . . . . 3 Kick . | . . . . . . Crush 1 | . . 1 . . . Escape Stasis . | . . . . . . Rewire . | . . . . . . Trap . | . . . . . . Miscellaneous . | . . . . . . Route ------- -11/Scrapyard -10/Materials (discovered 2 exits: *Mat / [*Min]) -10/Mines -9/Materials -9/Mines (discovered 2 exits: [*Mat x2]) -8/Materials History --------- Turn | Location | Event 6 | -11/Scrapyard | Discovered new exit (range 15) 93 | -11/Scrapyard | Entered Materials 307 | -10/Materials | Build established: Mutant 338 | -10/Materials | Discovered new exit (range 7) 519 | -10/Materials | Discovered new exit (range 7) 544 | -10/Materials | Entered Mines 576 | -10/Mines | YI-UF0 nonchalantly dropped a Grenade Launcher on the ground 773 | -10/Mines | Discovered new exit (range 16) 787 | -10/Mines | Received a Mining Laser from a helpful Derelict 789 | -10/Mines | Learned Materials stockpile data 799 | -10/Mines | Entered Materials 799 | -9/Materials | Accompanied by 1 ally 799 | -9/Materials | Evolved 2 slots: Propulsion x1, Utility x1 1067 | -9/Materials | Discovered new exit (range 8) 1091 | -9/Materials | Entered Mines 1092 | -9/Mines | Assembled infested the area 1099 | -9/Mines | Learned 2 Materials zone layouts 1178 | -9/Mines | A Derelict revealed a hidden shortcut to a safe place 1239 | -9/Mines | Build established: Scavenger-Mutant 1285 | -9/Mines | Found a hidden stash of uninstalled traps 1535 | -9/Mines | Lost 3 parts (1n1u1w) 1601 | -9/Mines | Discovered new exit (range 9) 1652 | -9/Mines | Discovered new exit (range 7) 1761 | -9/Mines | Core integrity fell below 50% 1763 | -9/Mines | Released all parts (7) 1832 | -9/Mines | Learned Materials interactive machine intel 2269 | -9/Mines | Build established: Mutant 2322 | -9/Mines | Entered Materials 2322 | -8/Materials | Evolved 2 slots: Weapon x2 2324 | -8/Materials | Loaded intel: 19 interactive machine locations 2452 | -8/Materials | Core integrity fell below 50% 2480 | -8/Materials | Core integrity fell below 20% 2482 | -8/Materials | Destroyed by H-61 Shepherd with Heavy Assault Cannon Last Messages --------------- ALERT: Hostiles spotted, dispatching reinforcements to Terminal M012. Acquired Hpw. Shotgun. Destroyed Flight Unit. S-10 Pest destroyed. Acquired Lgt. Assault Rifle. Slug penetrates Wall. Y-45 Defender destroyed. Switching to secondary target: H-61 Shepherd. H-61 Shepherd calls for reinforcements. ALERT: Hostile activity reported, dispatching reinforcements to area. Knocked back. Penetrated by Slug. Hpw. Shotgun destroyed. Knocked back. Integration Channel disabled. Lgt. Assault Rifle destroyed. Grenade Launcher destroyed. Knocked back. Map ----- +----------------------------------------------------+ | ???????????????????????????????????????? | | ???????????????????????????????????????? | | ?????????????????###???????????????????? | | ?????????????????# ######??????????????? | | ?????????????????# #??????????????? | | ################## """#??????????????? | | # # R"#??########????? | | # # """#### """ #????? | | # # # # """ #????? | | # # # # """ #????? | | # #####+## + #????? | | # #?# # #????? | | #?? #?# # #????? | | #??? #?# ### ########????? | | #??###/####?# #?# #???????? | | #+#+####### ##### [#?# #???????? | | # %#?## ##???????? | | [% T =#?########???????? | | ###### #### ##### #????????????????? | | ?????#+#??## ##???# #????????????????? | | ???????????# #????# #????????????????? | | ???????????# #????# #????????????????? | | ???????????+ #???## ##???????????????? | | ?"""???????# #???# ######??????????? | | ?"R????????####???# #?###??????? | | ?"""??????????????# @ ### ###??#?? | | ??????????????????# ## #"#""#?? | | ??#####???????????# ##!% g** ! #?? | | ] #???????????# ## [ *H = % #?? | | #???????????# ## !=[g %= #?? | | """ ! #???????????# ## "" #?? | | ??" #???????????# ?# """""""" #?? | | ????! #???????????# ?# """ """ #?? | | ??????????????????# ?###############?? | | ??????????????????# ?????????????????? | | ??????????????????# ?????????????????? | | ## #?????????? =?????????????????? | | #?????????? ?????????????????? | | #???????????? ??????????????????? | | #???????????????????????????????? | | ## ] #???????????????????????????????? | | ??# ##???????????????????????????????? | | ??? #????????????????????????????????? | | ???? #????????????????????????????????? | | ????? #????????????????????????????????? | | ??????#????????????????????????????????? | | ???????????????????????????????????????? | | ???????????????????????????????????????? | | ???????????""??????????????????????????? | | ???????????T???????????????????????????? | +----------------------------------------------------+ Best States ------------- Heat Dissipation 31 Energy Generation 15 Energy Capacity 250 Matter Stores 400 Matter Capacity 400 Sight Range 16 Terrain Scan Density 85 Armor Coverage 150 Evasion (%) 62 Recoil Reduction 3 Item Schematics ----------------- None Robot Schematics ------------------ None Fabricated ------------ Nothing Repaired ---------- Nothing Studied --------- None Alien Tech Used ----------------- None Achievements -------------- None Challenges ------------ None Game ------ Seed BombardmentSixCyclogen Manual? 0 Play Time 00:20:22 Cumulative 46.1 hours Start 2025.10.27 @ 12:27:54 End 2025.10.27 @ 12:46:07 Sessions 1 Manual Loads 0 Difficulty Rogue Special Mode None Game No. 85 Rogue 82 Adventurer 0 Explorer 3 Win Type - Total 1 Types 1/0/0/0/0/0/0/0/0/0 Lore% 40 Gallery% 32 Achievement% 22 Wizard Run 0 Options --------- Layout 1 ASCII 0 Keyboard 1 Movement Numpad Keybinds 0 Fullscreen 1 Font 24/Smallcaps Map View 50x35 Zoom Use 0% Tactical HUD 0 Map Filters NONE Filters NONE Steam 1 RUN: 2f492636-1b68-443a-9f76-c089510593b1